[Event "*** SCC Grand Prix: Titled Tuesday Blitz"]
[Site "Chess.com"]
[Date "2020.09.08"]
[Round "8"]
[White "Roaccutane"]
[Black "ChronicUnhappiness"]
[Result "1-0"]
[WhiteElo "2605"]
[BlackElo "2449"]
[TimeControl "180+1"]
[EndTime "11:36:34 PDT"]
[Termination "Roaccutane won on time"]

1. Nf3 {[%clk 0:03:00.9]} 1... c5 {[%clk 0:02:59.1]} 2. c4 {[%clk 0:02:59.4]}
2... Nf6 {[%clk 0:02:56.4]} 3. g3 {[%clk 0:02:58.4]} 3... b6 {[%clk 0:02:55.9]}
4. d4 {[%clk 0:02:57.5]} 4... cxd4 {[%clk 0:02:54.8]} 5. Qxd4 {[%clk 0:02:57.3]}
5... e6 {[%clk 0:02:50.7]} 6. Bg2 {[%clk 0:02:57.1]} 6... Bb7 {[%clk 0:02:50.2]}
7. O-O {[%clk 0:02:57.3]} 7... Bc5 {[%clk 0:02:43]} 8. Qh4 {[%clk 0:02:53.2]}
8... Ne4 {[%clk 0:02:09.4]} 9. Ng5 {[%clk 0:02:47]} 9... Nxf2 {[%clk 0:01:42.2]}
10. Bxb7 {[%clk 0:02:12.6]} 10... Nd3+ {[%clk 0:01:11.7]} 11. Kg2 {[%clk
0:02:10.5]} 11... Nxc1 {[%clk 0:01:10.4]} 12. Bxa8 {[%clk 0:01:27]} 12... Be7
{[%clk 0:00:49.4]} 13. Nxf7 {[%clk 0:01:17.4]} 13... Bxh4 {[%clk 0:00:46.6]} 14.
Nxd8 {[%clk 0:01:16.7]} 14... Nxe2 {[%clk 0:00:18.7]} 15. Nxe6 {[%clk
0:01:06.6]} 15... Bf6 {[%clk 0:00:15]} 16. Bf3 {[%clk 0:00:45.1]} 16... Bxb2
{[%clk 0:00:10.4]} 17. Nd2 {[%clk 0:00:27.3]} 17... Bxa1 {[%clk 0:00:09.9]} 18.
Rxa1 {[%clk 0:00:27.2]} 18... dxe6 {[%clk 0:00:10]} 19. Bxe2 {[%clk 0:00:26.9]}
19... Nd7 {[%clk 0:00:08.8]} 20. Nb3 {[%clk 0:00:25.9]} 20... Ke7 {[%clk
0:00:08.8]} 21. Re1 {[%clk 0:00:25.6]} 21... Ne5 {[%clk 0:00:09]} 22. c5 {[%clk
0:00:23.5]} 22... bxc5 {[%clk 0:00:08.4]} 23. Nxc5 {[%clk 0:00:24.4]} 23... Rc8
{[%clk 0:00:08.5]} 24. Rc1 {[%clk 0:00:17.5]} 24... Nd7 {[%clk 0:00:06.9]} 25.
Nb3 {[%clk 0:00:15.6]} 25... Rb8 {[%clk 0:00:05.7]} 26. Kf2 {[%clk 0:00:14.9]}
26... a5 {[%clk 0:00:05.7]} 27. Nd4 {[%clk 0:00:15.3]} 27... Rb2 {[%clk
0:00:05.5]} 28. Rc2 {[%clk 0:00:15]} 28... Rb1 {[%clk 0:00:04.7]} 29. Nc6+
{[%clk 0:00:14.6]} 29... Kd6 {[%clk 0:00:04.6]} 30. Nxa5 {[%clk 0:00:15.5]}
30... Nc5 {[%clk 0:00:04.1]} 31. Nc4+ {[%clk 0:00:15.4]} 31... Ke7 {[%clk
0:00:03.5]} 32. Nd2 {[%clk 0:00:15.5]} 32... Na4 {[%clk 0:00:02.6]} 33. Bf3
{[%clk 0:00:15.3]} 33... Nb2 {[%clk 0:00:02.4]} 34. h4 {[%clk 0:00:14.7]} 34...
Nd3+ {[%clk 0:00:02.5]} 35. Ke3 {[%clk 0:00:15.2]} 35... Nb4 {[%clk 0:00:02.5]}
36. Rc7+ {[%clk 0:00:14.3]} 36... Kd6 {[%clk 0:00:02]} 37. Rb7 {[%clk
0:00:15.2]} 1-0

[Event "*** SCC Grand Prix: Titled Tuesday Blitz"]
[Site "Chess.com"]
[Date "2020.09.08"]
[Round "8"]
[White "IngOscarArdila"]
[Black "tmr88"]
[Result "0-1"]
[WhiteElo "2151"]
[BlackElo "2089"]
[TimeControl "180+1"]
[EndTime "11:36:36 PDT"]
[Termination "tmr88 won on time"]

1. d4 {[%clk 0:03:00.9]} 1... Nf6 {[%clk 0:02:58.7]} 2. c4 {[%clk 0:03:00.3]}
2... g6 {[%clk 0:02:58.1]} 3. Nc3 {[%clk 0:02:59.8]} 3... Bg7 {[%clk 0:02:58]}
4. e4 {[%clk 0:02:59.7]} 4... d6 {[%clk 0:02:58.2]} 5. Nf3 {[%clk 0:03:00]} 5...
O-O {[%clk 0:02:58.1]} 6. Be2 {[%clk 0:02:59.9]} 6... e5 {[%clk 0:02:57.5]} 7.
O-O {[%clk 0:02:58.9]} 7... Nc6 {[%clk 0:02:57]} 8. d5 {[%clk 0:02:58.9]} 8...
Ne7 {[%clk 0:02:57.4]} 9. Bg5 {[%clk 0:02:59.2]} 9... Ne8 {[%clk 0:02:31.1]} 10.
b4 {[%clk 0:02:57]} 10... f6 {[%clk 0:02:30.7]} 11. Be3 {[%clk 0:02:55.1]} 11...
f5 {[%clk 0:02:30.3]} 12. Bg5 {[%clk 0:02:54.9]} 12... f4 {[%clk 0:02:20.5]} 13.
Nd2 {[%clk 0:02:53.3]} 13... h6 {[%clk 0:02:19.7]} 14. Bxe7 {[%clk 0:02:52.8]}
14... Qxe7 {[%clk 0:02:19.4]} 15. Bg4 {[%clk 0:02:53]} 15... h5 {[%clk
0:01:27.2]} 16. Bxc8 {[%clk 0:02:51.2]} 16... Rxc8 {[%clk 0:01:28.1]} 17. f3
{[%clk 0:02:41.7]} 17... g5 {[%clk 0:01:27]} 18. Rc1 {[%clk 0:02:38.8]} 18...
Nf6 {[%clk 0:01:24]} 19. h3 {[%clk 0:02:37.2]} 19... Rf7 {[%clk 0:01:13.5]} 20.
Nb5 {[%clk 0:02:26.1]} 20... a6 {[%clk 0:01:09.3]} 21. Nc3 {[%clk 0:02:24.1]}
21... Bf8 {[%clk 0:01:08.2]} 22. a4 {[%clk 0:02:22.2]} 22... g4 {[%clk
0:01:07.5]} 23. hxg4 {[%clk 0:02:21.2]} 23... hxg4 {[%clk 0:01:07.3]} 24. fxg4
{[%clk 0:02:21.4]} 24... Rg7 {[%clk 0:01:07.3]} 25. Qf3 {[%clk 0:02:10.7]} 25...
Nxg4 {[%clk 0:01:05.6]} 26. Nd1 {[%clk 0:02:03.6]} 26... Qh4 {[%clk 0:01:04.6]}
27. Qh3 {[%clk 0:01:51.1]} 27... Qxh3 {[%clk 0:01:04.3]} 28. gxh3 {[%clk
0:01:50.3]} 28... Ne3+ {[%clk 0:01:04.3]} 29. Kf2 {[%clk 0:01:50.2]} 29... Rg2+
{[%clk 0:00:55.8]} 30. Ke1 {[%clk 0:01:50.3]} 30... Nxf1 {[%clk 0:00:46.8]} 31.
Kxf1 {[%clk 0:01:50.3]} 31... Rxd2 {[%clk 0:00:45]} 32. Nf2 {[%clk 0:01:47.6]}
32... Be7 {[%clk 0:00:44.2]} 33. Ng4 {[%clk 0:01:46.4]} 33... Kh7 {[%clk
0:00:40.4]} 34. c5 {[%clk 0:01:44]} 34... Rf8 {[%clk 0:00:33.8]} 35. c6 {[%clk
0:01:32.4]} 35... b6 {[%clk 0:00:33]} 36. a5 {[%clk 0:01:28.6]} 36... bxa5
{[%clk 0:00:31.7]} 37. bxa5 {[%clk 0:01:28.1]} 37... Rb2 {[%clk 0:00:31.5]} 38.
Rc3 {[%clk 0:01:24.3]} 38... Rfb8 {[%clk 0:00:30]} 39. Nf2 {[%clk 0:01:21.7]}
39... R8b3 {[%clk 0:00:29.1]} 40. Rc1 {[%clk 0:01:19.5]} 40... Rb1 {[%clk
0:00:29]} 41. Rxb1 {[%clk 0:01:18.3]} 41... Rxb1+ {[%clk 0:00:29.9]} 42. Kg2
{[%clk 0:01:18.6]} 42... Rb2 {[%clk 0:00:29.8]} 43. Kf3 {[%clk 0:01:18.9]} 43...
Rxf2+ {[%clk 0:00:28.9]} 44. Kxf2 {[%clk 0:01:18.9]} 44... Bh4+ {[%clk
0:00:29.4]} 0-1

[Event "*** SCC Grand Prix: Titled Tuesday Blitz"]
[Site "Chess.com"]
[Date "2020.09.08"]
[Round "8"]
[White "earling8018"]
[Black "RobPeresian"]
[Result "0-1"]
[WhiteElo "2056"]
[BlackElo "2367"]
[TimeControl "180+1"]
[EndTime "11:36:38 PDT"]
[Termination "RobPeresian won on time"]

1. d4 {[%clk 0:03:00.9]} 1... Nf6 {[%clk 0:02:49.9]} 2. c4 {[%clk 0:03:00.7]}
2... e6 {[%clk 0:02:50.2]} 3. Nf3 {[%clk 0:02:59]} 3... d5 {[%clk 0:02:49.1]} 4.
Nc3 {[%clk 0:02:57.9]} 4... Bb4 {[%clk 0:02:47.6]} 5. Qa4+ {[%clk 0:02:48.2]}
5... Nc6 {[%clk 0:02:44.2]} 6. Bg5 {[%clk 0:02:40.5]} 6... O-O {[%clk
0:02:32.4]} 7. Qc2 {[%clk 0:02:38.5]} 7... h6 {[%clk 0:02:18.6]} 8. Bd2 {[%clk
0:01:59]} 8... dxc4 {[%clk 0:01:57.3]} 9. e3 {[%clk 0:01:58]} 9... a6 {[%clk
0:01:51.5]} 10. Bxc4 {[%clk 0:01:56.4]} 10... Bd6 {[%clk 0:01:46.4]} 11. O-O
{[%clk 0:01:45.1]} 11... e5 {[%clk 0:01:46.1]} 12. dxe5 {[%clk 0:01:39.9]} 12...
Nxe5 {[%clk 0:01:47]} 13. Nxe5 {[%clk 0:01:40]} 13... Bxe5 {[%clk 0:01:47.2]}
14. f4 {[%clk 0:01:38.2]} 14... Bd6 {[%clk 0:01:45]} 15. Rad1 {[%clk 0:01:26.5]}
15... Bg4 {[%clk 0:01:40.7]} 16. Rde1 {[%clk 0:01:24]} 16... Re8 {[%clk
0:01:28.8]} 17. e4 {[%clk 0:01:21.6]} 17... Bf8 {[%clk 0:01:17.8]} 18. e5 {[%clk
0:01:15.2]} 18... Qd4+ {[%clk 0:01:17.2]} 19. Kh1 {[%clk 0:01:09.5]} 19... Qxc4
{[%clk 0:01:16]} 20. exf6 {[%clk 0:01:09.3]} 20... g6 {[%clk 0:01:14.9]} 21. Qa4
{[%clk 0:00:35.2]} 21... Qxa4 {[%clk 0:01:07]} 22. Nxa4 {[%clk 0:00:35.2]} 22...
b5 {[%clk 0:01:01.7]} 23. Nc3 {[%clk 0:00:34.1]} 23... c6 {[%clk 0:00:57.5]} 24.
a3 {[%clk 0:00:20.2]} 24... Bf5 {[%clk 0:00:53.6]} 25. h3 {[%clk 0:00:14.8]}
25... Bd3 {[%clk 0:00:53.1]} 26. Rxe8 {[%clk 0:00:13.7]} 26... Rxe8 {[%clk
0:00:54]} 27. Re1 {[%clk 0:00:14]} 27... Rd8 {[%clk 0:00:48.4]} 28. Bc1 {[%clk
0:00:12.4]} 28... Bc4 {[%clk 0:00:44]} 29. g4 {[%clk 0:00:11.2]} 29... Be6
{[%clk 0:00:35.7]} 30. Kg2 {[%clk 0:00:09.5]} 30... Rd3 {[%clk 0:00:35.1]} 31.
Re3 {[%clk 0:00:09.6]} 31... Rd4 {[%clk 0:00:32.8]} 32. Kf3 {[%clk 0:00:08.6]}
32... c5 {[%clk 0:00:20.1]} 33. Re4 {[%clk 0:00:06.3]} 33... Rd3+ {[%clk
0:00:19.3]} 34. Re3 {[%clk 0:00:06.5]} 34... Rd8 {[%clk 0:00:19]} 35. h4 {[%clk
0:00:06.1]} 35... c4 {[%clk 0:00:16.2]} 36. g5 {[%clk 0:00:05.4]} 36... h5
{[%clk 0:00:15.3]} 37. Kf2 {[%clk 0:00:01.3]} 37... Bg4 {[%clk 0:00:14.1]} 38.
Kg3 {[%clk 0:00:01.2]} 38... Bc5 {[%clk 0:00:13.2]} 0-1

[Event "*** SCC Grand Prix: Titled Tuesday Blitz"]
[Site "Chess.com"]
[Date "2020.09.08"]
[Round "8"]
[White "Jospem"]
[Black "UCantHandleDenker"]
[Result "1-0"]
[WhiteElo "2909"]
[BlackElo "2602"]
[TimeControl "180+1"]
[EndTime "11:36:39 PDT"]
[Termination "Jospem won by checkmate"]

1. e4 {[%clk 0:03:00.9]} 1... d6 {[%clk 0:02:58.8]} 2. d4 {[%clk 0:03:01.3]}
2... Nf6 {[%clk 0:02:59]} 3. Nc3 {[%clk 0:03:01.8]} 3... g6 {[%clk 0:02:59.6]}
4. Be2 {[%clk 0:02:57.2]} 4... Bg7 {[%clk 0:02:59.3]} 5. Nf3 {[%clk 0:02:57]}
5... O-O {[%clk 0:02:58.4]} 6. O-O {[%clk 0:02:57.6]} 6... c5 {[%clk 0:02:56.7]}
7. dxc5 {[%clk 0:02:56.1]} 7... dxc5 {[%clk 0:02:56.7]} 8. h3 {[%clk 0:02:51.5]}
8... b6 {[%clk 0:02:55.9]} 9. Bg5 {[%clk 0:02:22.4]} 9... Nc6 {[%clk 0:02:22.8]}
10. Bc4 {[%clk 0:02:04.6]} 10... Nd7 {[%clk 0:02:09.3]} 11. Bd5 {[%clk
0:01:58.4]} 11... Bb7 {[%clk 0:02:06.1]} 12. Qd2 {[%clk 0:01:58.4]} 12... Re8
{[%clk 0:01:57.4]} 13. Rad1 {[%clk 0:01:49.9]} 13... Qc8 {[%clk 0:01:44]} 14.
Ne2 {[%clk 0:01:20.3]} 14... e6 {[%clk 0:01:34.3]} 15. Bxc6 {[%clk 0:01:12.4]}
15... Bxc6 {[%clk 0:01:34.4]} 16. Ng3 {[%clk 0:01:12.8]} 16... Ne5 {[%clk
0:01:33.1]} 17. Nxe5 {[%clk 0:01:08]} 17... Bxe5 {[%clk 0:01:34]} 18. c3 {[%clk
0:01:08.6]} 18... Qc7 {[%clk 0:01:31.1]} 19. Qe3 {[%clk 0:01:04.9]} 19... a5
{[%clk 0:01:20]} 20. f4 {[%clk 0:01:04.9]} 20... Bg7 {[%clk 0:01:19.5]} 21. e5
{[%clk 0:01:05.5]} 21... h6 {[%clk 0:01:13]} 22. Bh4 {[%clk 0:00:58.7]} 22...
Qb7 {[%clk 0:01:13]} 23. Rf2 {[%clk 0:00:56]} 23... Rac8 {[%clk 0:01:09]} 24.
Rfd2 {[%clk 0:00:53.5]} 24... Rc7 {[%clk 0:01:06.2]} 25. Nf1 {[%clk 0:00:53]}
25... Rd7 {[%clk 0:01:00.7]} 26. Nh2 {[%clk 0:00:53]} 26... Rxd2 {[%clk
0:00:56.7]} 27. Rxd2 {[%clk 0:00:53.9]} 27... Rc8 {[%clk 0:00:54.7]} 28. Ng4
{[%clk 0:00:52.8]} 28... Bf8 {[%clk 0:00:40.1]} 29. Kh2 {[%clk 0:00:44.3]} 29...
c4 {[%clk 0:00:39.3]} 30. Qg3 {[%clk 0:00:33.1]} 30... Bg7 {[%clk 0:00:24.4]}
31. Bf6 {[%clk 0:00:32.5]} 31... Be4 {[%clk 0:00:23]} 32. Bxg7 {[%clk
0:00:24.1]} 32... Kxg7 {[%clk 0:00:23.4]} 33. Qh4 {[%clk 0:00:23.9]} 33... h5
{[%clk 0:00:19.3]} 34. Nf6 {[%clk 0:00:23.8]} 34... Bc6 {[%clk 0:00:15.3]} 35.
Qg5 {[%clk 0:00:22.2]} 35... Rh8 {[%clk 0:00:16]} 36. Rd6 {[%clk 0:00:10.9]}
36... Ba4 {[%clk 0:00:13.6]} 37. b3 {[%clk 0:00:09.7]} 37... cxb3 {[%clk
0:00:13.2]} 38. axb3 {[%clk 0:00:10.6]} 38... Bb5 {[%clk 0:00:12.9]} 39. c4
{[%clk 0:00:10.5]} 39... Be8 {[%clk 0:00:13.8]} 40. Rd8 {[%clk 0:00:09]} 40...
Bc6 {[%clk 0:00:11.8]} 41. Nxh5+ {[%clk 0:00:08]} 41... Rxh5 {[%clk 0:00:11]}
42. Qf6+ {[%clk 0:00:08.2]} 42... Kh7 {[%clk 0:00:11.1]} 43. Rh8# {[%clk
0:00:08.8]} 1-0

[Event "*** SCC Grand Prix: Titled Tuesday Blitz"]
[Site "Chess.com"]
[Date "2020.09.08"]
[Round "8"]
[White "KNCP_719"]
[Black "Snegokhod"]
[Result "0-1"]
[WhiteElo "2552"]
[BlackElo "2400"]
[TimeControl "180+1"]
[EndTime "11:36:43 PDT"]
[Termination "Snegokhod won on time"]

1. Nf3 {[%clk 0:03:00.9]} 1... Nf6 {[%clk 0:02:58.7]} 2. c4 {[%clk 0:02:56.5]}
2... g6 {[%clk 0:02:58.8]} 3. b3 {[%clk 0:02:56.2]} 3... Bg7 {[%clk 0:02:58]} 4.
Bb2 {[%clk 0:02:57.1]} 4... O-O {[%clk 0:02:58.5]} 5. g3 {[%clk 0:02:57.5]} 5...
c5 {[%clk 0:02:56.4]} 6. Bg2 {[%clk 0:02:57.6]} 6... Nc6 {[%clk 0:02:56.2]} 7.
O-O {[%clk 0:02:58]} 7... d6 {[%clk 0:02:53.8]} 8. d4 {[%clk 0:02:58.2]} 8...
Ne4 {[%clk 0:02:53.3]} 9. Nc3 {[%clk 0:02:46.9]} 9... Bf5 {[%clk 0:02:46.4]} 10.
e3 {[%clk 0:02:35.6]} 10... Nxc3 {[%clk 0:02:15.6]} 11. Bxc3 {[%clk 0:02:35]}
11... Be4 {[%clk 0:02:15.7]} 12. Qd2 {[%clk 0:02:13.3]} 12... cxd4 {[%clk
0:02:08.2]} 13. exd4 {[%clk 0:02:11.7]} 13... d5 {[%clk 0:02:08]} 14. c5 {[%clk
0:02:01.6]} 14... Bxf3 {[%clk 0:02:00.1]} 15. Bxf3 {[%clk 0:02:00.8]} 15... e6
{[%clk 0:02:00.3]} 16. b4 {[%clk 0:02:00.6]} 16... Qf6 {[%clk 0:01:54.4]} 17.
Bg2 {[%clk 0:01:50.3]} 17... Nxd4 {[%clk 0:01:50.3]} 18. Bxd4 {[%clk 0:01:49.6]}
18... Qxd4 {[%clk 0:01:49.7]} 19. Qxd4 {[%clk 0:01:33.4]} 19... Bxd4 {[%clk
0:01:48.9]} 20. Rab1 {[%clk 0:01:34.3]} 20... a5 {[%clk 0:01:36.7]} 21. Rfd1
{[%clk 0:01:27]} 21... Bc3 {[%clk 0:01:28.6]} 22. b5 {[%clk 0:00:57.3]} 22...
Bb4 {[%clk 0:01:26.5]} 23. Rdc1 {[%clk 0:00:54.2]} 23... Rfc8 {[%clk 0:01:24.6]}
24. c6 {[%clk 0:00:51]} 24... bxc6 {[%clk 0:01:24.3]} 25. bxc6 {[%clk
0:00:51.3]} 25... Kf8 {[%clk 0:00:53.8]} 26. Bf1 {[%clk 0:00:48.8]} 26... Ke7
{[%clk 0:00:53.6]} 27. Rb3 {[%clk 0:00:46.5]} 27... Kd6 {[%clk 0:00:50.6]} 28.
a3 {[%clk 0:00:40.7]} 28... Bc5 {[%clk 0:00:44.3]} 29. Rb7 {[%clk 0:00:32.3]}
29... Rxc6 {[%clk 0:00:29.1]} 30. Kg2 {[%clk 0:00:28.9]} 30... Ra7 {[%clk
0:00:19.8]} 31. Rb8 {[%clk 0:00:19.6]} 31... Rac7 {[%clk 0:00:17.7]} 32. a4
{[%clk 0:00:16.4]} 32... Bb4 {[%clk 0:00:17]} 33. Rd1 {[%clk 0:00:12.3]} 33...
Rc2 {[%clk 0:00:16.1]} 34. Bd3 {[%clk 0:00:05]} 34... Ra2 {[%clk 0:00:15.9]} 35.
Rf8 {[%clk 0:00:01.7]} 35... Ke5 {[%clk 0:00:13.8]} 36. Rf1 {[%clk 0:00:01.7]}
36... Kf6 {[%clk 0:00:13.9]} 37. Kh3 {[%clk 0:00:01.4]} 37... Bxf8 {[%clk
0:00:13.8]} 0-1

[Event "*** SCC Grand Prix: Titled Tuesday Blitz"]
[Site "Chess.com"]
[Date "2020.09.08"]
[Round "8"]
[White "ecwinslow"]
[Black "MathiasWomacka"]
[Result "0-1"]
[WhiteElo "2293"]
[BlackElo "2416"]
[TimeControl "180+1"]
[EndTime "11:36:43 PDT"]
[Termination "MathiasWomacka won by resignation"]

1. e4 {[%clk 0:03:00.9]} 1... c5 {[%clk 0:02:59]} 2. Nf3 {[%clk 0:02:59.9]} 2...
d6 {[%clk 0:02:59.2]} 3. d4 {[%clk 0:03:00.3]} 3... cxd4 {[%clk 0:03:00.1]} 4.
Nxd4 {[%clk 0:03:00.6]} 4... Nf6 {[%clk 0:03:00]} 5. Nc3 {[%clk 0:03:01.4]} 5...
a6 {[%clk 0:03:00.2]} 6. Bg5 {[%clk 0:03:01.4]} 6... e6 {[%clk 0:03:00.2]} 7. f4
{[%clk 0:03:01.5]} 7... h6 {[%clk 0:03:00.2]} 8. Bh4 {[%clk 0:03:00.3]} 8... Qb6
{[%clk 0:03:00]} 9. a3 {[%clk 0:02:48.6]} 9... Nbd7 {[%clk 0:02:59.1]} 10. Bf2
{[%clk 0:02:39.9]} 10... Qc7 {[%clk 0:02:59]} 11. Bd3 {[%clk 0:02:35.3]} 11...
b5 {[%clk 0:02:58.6]} 12. O-O {[%clk 0:02:34.8]} 12... Bb7 {[%clk 0:02:58.8]}
13. Qe2 {[%clk 0:02:33.5]} 13... Be7 {[%clk 0:02:58.9]} 14. Rae1 {[%clk
0:02:30.4]} 14... O-O {[%clk 0:02:58.4]} 15. e5 {[%clk 0:02:18.8]} 15... dxe5
{[%clk 0:02:58.3]} 16. fxe5 {[%clk 0:02:18.1]} 16... Nd5 {[%clk 0:02:57.4]} 17.
Nxd5 {[%clk 0:02:12]} 17... Bxd5 {[%clk 0:02:56.4]} 18. Qh5 {[%clk 0:02:05.6]}
18... Rac8 {[%clk 0:02:48.5]} 19. Be3 {[%clk 0:01:48.1]} 19... Nc5 {[%clk
0:02:35.1]} 20. Rd1 {[%clk 0:01:34.3]} 20... Nxd3 {[%clk 0:02:32.9]} 21. Rxd3
{[%clk 0:01:33.6]} 21... Be4 {[%clk 0:02:32]} 22. Rc3 {[%clk 0:01:22.7]} 22...
Qb7 {[%clk 0:02:22.7]} 23. Rxc8 {[%clk 0:01:08.4]} 23... Qxc8 {[%clk 0:02:23.6]}
24. Rf4 {[%clk 0:01:01.9]} 24... Bg6 {[%clk 0:02:19.2]} 25. Qe2 {[%clk
0:01:01.3]} 25... Rd8 {[%clk 0:02:13.9]} 26. h4 {[%clk 0:00:57]} 26... h5 {[%clk
0:02:01]} 27. c3 {[%clk 0:00:56]} 27... Rd5 {[%clk 0:01:54.7]} 28. Nf3 {[%clk
0:00:42.5]} 28... Qd8 {[%clk 0:01:49.4]} 29. Rd4 {[%clk 0:00:38.7]} 29... Rxd4
{[%clk 0:01:47.3]} 30. Bxd4 {[%clk 0:00:38.3]} 30... Bxh4 {[%clk 0:01:41.7]} 31.
a4 {[%clk 0:00:30.8]} 31... Bg3 {[%clk 0:01:18.1]} 32. axb5 {[%clk 0:00:29.4]}
32... axb5 {[%clk 0:01:19]} 33. Qxb5 {[%clk 0:00:27.8]} 33... Be4 {[%clk
0:01:07.5]} 34. Qe2 {[%clk 0:00:27.6]} 34... Qa8 {[%clk 0:01:03.6]} 35. Nd2
{[%clk 0:00:22.1]} 35... Qa1+ {[%clk 0:00:45.7]} 36. Nf1 {[%clk 0:00:21.6]}
36... Qb1 {[%clk 0:00:42.1]} 37. b4 {[%clk 0:00:20.5]} 37... Bd3 {[%clk
0:00:32.6]} 38. Qf3 {[%clk 0:00:20.5]} 38... h4 {[%clk 0:00:22]} 39. Be3 {[%clk
0:00:19.6]} 39... Bxe5 {[%clk 0:00:20.2]} 40. Bg5 {[%clk 0:00:16.6]} 40... Bxc3
{[%clk 0:00:16.7]} 41. Bxh4 {[%clk 0:00:15.1]} 41... Bxb4 {[%clk 0:00:15]} 42.
Bg3 {[%clk 0:00:13.4]} 42... Bc5+ {[%clk 0:00:14.6]} 43. Kh2 {[%clk 0:00:13.3]}
43... Qxf1 {[%clk 0:00:13.9]} 0-1

[Event "*** SCC Grand Prix: Titled Tuesday Blitz"]
[Site "Chess.com"]
[Date "2020.09.08"]
[Round "8"]
[White "GMaka"]
[Black "pastouche06"]
[Result "1-0"]
[WhiteElo "2387"]
[BlackElo "2480"]
[TimeControl "180+1"]
[EndTime "11:36:44 PDT"]
[Termination "GMaka won on time"]

1. d4 {[%clk 0:03:00.9]} 1... Nf6 {[%clk 0:01:45.1]} 2. Bg5 {[%clk 0:02:59.9]}
2... Ne4 {[%clk 0:01:42.6]} 3. Bf4 {[%clk 0:02:59.6]} 3... d5 {[%clk 0:01:43.2]}
4. e3 {[%clk 0:02:58.4]} 4... c5 {[%clk 0:01:43.5]} 5. Bd3 {[%clk 0:02:57.9]}
5... Nc6 {[%clk 0:01:44.1]} 6. c3 {[%clk 0:02:48.8]} 6... cxd4 {[%clk
0:01:40.9]} 7. cxd4 {[%clk 0:02:35.1]} 7... Bf5 {[%clk 0:01:20.2]} 8. Ne2 {[%clk
0:02:29.6]} 8... e6 {[%clk 0:01:17.7]} 9. O-O {[%clk 0:02:29.1]} 9... Bd6 {[%clk
0:01:18]} 10. Nbc3 {[%clk 0:02:26.2]} 10... Nxc3 {[%clk 0:01:14.5]} 11. bxc3
{[%clk 0:02:21.1]} 11... Bxd3 {[%clk 0:01:14.5]} 12. Qxd3 {[%clk 0:02:19.4]}
12... O-O {[%clk 0:01:14.8]} 13. c4 {[%clk 0:02:13.8]} 13... dxc4 {[%clk
0:01:12.7]} 14. Qxc4 {[%clk 0:02:14.7]} 14... Bxf4 {[%clk 0:01:12.9]} 15. Nxf4
{[%clk 0:02:15.4]} 15... Qd7 {[%clk 0:01:11.9]} 16. Nd3 {[%clk 0:02:08.1]} 16...
b6 {[%clk 0:01:07.6]} 17. Qb5 {[%clk 0:01:57.2]} 17... Rfd8 {[%clk 0:00:59.1]}
18. a4 {[%clk 0:01:50.9]} 18... Na5 {[%clk 0:00:49.2]} 19. Rac1 {[%clk
0:01:36.9]} 19... Qxb5 {[%clk 0:00:44.8]} 20. axb5 {[%clk 0:01:37.8]} 20... Rd5
{[%clk 0:00:39.7]} 21. Rc7 {[%clk 0:01:28.5]} 21... Rxb5 {[%clk 0:00:39.7]} 22.
Rfc1 {[%clk 0:01:28.8]} 22... f6 {[%clk 0:00:36.7]} 23. Nf4 {[%clk 0:01:26.3]}
23... Nb3 {[%clk 0:00:31.2]} 24. Rc8+ {[%clk 0:01:19.2]} 24... Rxc8 {[%clk
0:00:30.8]} 25. Rxc8+ {[%clk 0:01:19.8]} 25... Kf7 {[%clk 0:00:31.2]} 26. Rc7+
{[%clk 0:01:20.4]} 26... Kg8 {[%clk 0:00:31.2]} 27. h4 {[%clk 0:01:13.4]} 27...
a5 {[%clk 0:00:22.2]} 28. Nxe6 {[%clk 0:01:11.4]} 28... a4 {[%clk 0:00:20.1]}
29. Rxg7+ {[%clk 0:01:02]} 29... Kh8 {[%clk 0:00:18.1]} 30. Rf7 {[%clk
0:00:36.2]} 30... h5 {[%clk 0:00:17.5]} 31. Rf8+ {[%clk 0:00:21.8]} 31... Kh7
{[%clk 0:00:17.2]} 32. e4 {[%clk 0:00:20.8]} 32... a3 {[%clk 0:00:16.1]} 33.
Rf7+ {[%clk 0:00:21.2]} 33... Kg8 {[%clk 0:00:15.6]} 34. Rf8+ {[%clk 0:00:19.2]}
34... Kh7 {[%clk 0:00:14.5]} 35. Rf7+ {[%clk 0:00:20.1]} 35... Kg6 {[%clk
0:00:07.9]} 36. Rg7+ {[%clk 0:00:19.5]} 36... Kh6 {[%clk 0:00:08.2]} 37. Rc7
{[%clk 0:00:11.7]} 37... a2 {[%clk 0:00:07.5]} 38. Nf8 {[%clk 0:00:12.4]} 38...
a1=Q+ {[%clk 0:00:06.4]} 39. Kh2 {[%clk 0:00:13.3]} 1-0